Cogmind - Beta 17.1 @@@ ROGUE MODE // 2026.08.28 @ 23:54:18 Player: JuustuToug Result: Destroyed by MAIN.C with Heavy Quantum Rifle Performance ------------- Evolutions (9) 4500 Regions Visited (21) 4200 Robots Destroyed (166) 830 Value Destroyed (9765) 9765 Prototype IDs (204) 4080 Alien Tech Used (7) 1400 Bonus (15301) 15301 TOTAL SCORE: 40076 Bonus ------- High Alert Combat Kills 2963 Follower Combat Kills 2645 Forged Quantum Companion 1000 Registered with UFD 300 Met Optimus in HQ 500 Met Zhirov 300 Met Warlord at Base 500 MAIN.C Attacked Warlord 500 MAIN.C Attacked Proxy Base 500 Met Optimus at Protoforge 1000 Destroyed MAIN.C Guards 500 Met MAIN.C 5000 Friendly Fire -407 Cogmind --------- Core Integrity 0/1600 Matter 300/300 Energy 135/350 System Corruption 4% Temperature Cool (18) Movement Hovering (66) Location -1/Command Parts ------- > --- POWER (2) -------- Quantum Reactor > --- PROPULSION (7) --- Combat Gravmag System Concept Gyrokinetic System > --- UTILITY (13) ----- Concept Thermoelectric Network Experimental Optical Array Concept Network Penetrator > --- WEAPON (3) ------- Quantum Companion > --- INVENTORY (5) ---- Concept Disintegration Ray (33) Concept Plasma Driver Concept EMP Blanket Launcher Concept Rapid Grenade Launcher Peak State ------------ > --- POWER ------------ Improved Quantum Reactor Hybrid Graviton Reactor > --- PROPULSION ------- Experimental Antigrav System Gravjet Array Gravjet Array Concept Combat Aerolev Unit Concept Gyrokinetic System > --- UTILITY ---------- Concept Antigrav Storage Unit Experimental Optical Array Experimental Active Sensor Suite Concept Melee Reflex Suite Concept Weapon Articulator Femtoactuators Concept Cloak Mesh Concept RG22 Armor Concept RG22 Armor Concept Network Penetrator > --- WEAPON ----------- Concept Deflector Sword Quantum Companion Experimental Jetlance > --- INVENTORY -------- Experimental Antimatter Reactor Experimental Antimatter Reactor Hybrid Graviton Reactor Hybrid Graviton Reactor Experimental Antigrav System Concept Thermoelectric Network Experimental Energy Well Concept Chromion Battery Concept NT7 Matterbank Concept Impact Drone Bay Transdimensional Reconstructor Concept Lightning Penetrator Concept Disintegration Ray Concept Plasma Driver Concept EMP Blanket Launcher Ragnarok Missile Launcher Concept Rapid Grenade Launcher Concept Arcsight Missile Launcher Concept Arcsight Missile Launcher Concept Deflector Sword [Rating: 275] Favorites ----------- Power Subdweller Power Source Engine Subdweller Power Source Power Core Micro Fission Core Reactor Micro Antimatter Reactor Propulsion Spiked Treads Treads Spiked Treads Leg Flexi-carbon Leg Wheel Subdweller Monowheel Hover Unit Concept Gyrokinetic System Flight Unit Cooled Nuclear Pulse Thruster Utility High-capacity Storage Unit Device V3-11A's Pendant Storage High-capacity Storage Unit Processor Advanced Visual Processing Unit Hackware Advanced Hacking Suite Protection Concept RG22 Armor Artifact Phase Redirector Weapon Subdweller Beam Cannon Energy Gun Subdweller Laser Energy Cannon Subdweller Beam Cannon Ballistic Gun Heavy Assault Rifle Launcher Gamma Bomb Array Special Weapon RU-N14's Throwing Claymores v3 Slashing Weapon Companion Sword Piercing Weapon Experimental Jetlance Build | -11 -10 -10 -7 -7 -5 -5 -5 -5 -4 -4 -4 -4 -4 -3 -3 -3 -2 -2 -2 -1 -1 ------- Run | Yrd Mat Sub Rec Scr Fac Upp Upp Zhi Pro Fac Upp Upp War Pro Res Tes Res Qua Frg Acc Com Slots Evolved 18 | . . . . . 10 . . . . 2 . . . . 2 . 2 . . 2 . Power 1 | . . . . . 1 . . . . . . . . . . . . . . . . Propulsion 5 | . . . . . 3 . . . . 1 . . . . 1 . . . . . . Utility 11 | . . . . . 6 . . . . 1 . . . . 1 . 1 . . 2 . Weapon 1 | . . . . . . . . . . . . . . . . . 1 . . . . Parts Attached 233 | 7 8 29 2 7 30 8 9 7 15 14 3 1 3 2 4 . 4 5 57 9 9 Power 38 | 1 . 4 . 1 6 3 3 1 5 1 . 1 . 1 1 . . 1 5 2 2 Engine 12 | 1 . 4 . 1 1 1 . 1 3 . . . . . . . . . . . . Core 13 | . . . . . 5 2 3 . 1 1 . 1 . . . . . . . . . Reactor 13 | . . . . . . . . . 1 . . . . 1 1 . . 1 5 2 2 Propulsion 59 | 2 . 6 1 1 7 3 3 3 6 5 . . . . . . 1 1 14 3 3 Treads 12 | 2 . 2 . 1 4 1 2 . . . . . . . . . . . . . . Leg 5 | . . . . . 2 2 . . . . . . . . . . . . 1 . . Wheel 7 | . . 4 1 . 1 . 1 . . . . . . . . . . . . . . Hover 14 | . . . . . . . . . 1 . . . . . . . . . 7 3 3 Flight 21 | . . . . . . . . 3 5 5 . . . . . . 1 1 6 . . Utility 93 | 2 2 8 1 3 15 2 3 3 3 8 3 . 1 . 3 . 3 3 24 3 3 Device 35 | 1 . 2 . 2 7 . 1 2 1 2 1 . . . 1 . 2 . 8 3 2 Storage 8 | 1 1 1 . . 1 . . . . . . . . . . . 1 . 3 . . Processor 17 | . . . 1 1 6 1 . . . 1 1 . . . 1 . . . 5 . . Hackware 7 | . . . . . . . . 1 . 3 . . . . . . . 1 1 . 1 Protection 25 | . 1 5 . . 1 1 2 . 2 2 1 . 1 . 1 . . 1 7 . . Artifact 1 | . . . . . . . . . . . . . . . . . . 1 . . . Weapon 43 | 2 6 11 . 2 2 . . . 1 . . . 2 1 . . . . 14 1 1 Energy Gun 8 | . 2 3 . . . . . . . . . . . . . . . . 3 . . Energy Cannon 10 | . . 6 . . . . . . 1 . . . . . . . . . 2 1 . Ballistic Gun 6 | 2 2 1 . . . . . . . . . . . . . . . . 1 . . Ballistic Cannon . | . . . . . . . . . . . . . . . . . . . . . . Launcher 12 | . 2 1 . 1 2 . . . . . . . . 1 . . . . 4 . 1 Special Weapon 2 | . . . . . . . . . . . . . 2 . . . . . . . . Impact Weapon . | . . . . . . . . . . . . . . . . . . . . . . Slashing Weapon 3 | . . . . 1 . . . . . . . . . . . . . . 2 . . Piercing Weapon 2 | . . . . . . . . . . . . . . . . . . . 2 . . Special Melee Weapon . | . . . . . . . . . . . . . . . . . . . . . . Unidentified Prototypes 21 | . . 1 . 1 4 1 1 3 1 . . . . . . . . 4 5 . . Corrupted Parts 4 | . . . . . . 1 . . 2 . . 1 . . . . . . . . . System Corruption 16 | . . . . . . 5 . . 9 . . 2 . . . . . . . . . Parts Lost 81 | . . 5 . . 7 13 3 . 2 5 . 1 1 2 . . . . 21 6 15 Power 17 | . . 1 . . 2 3 2 . . . . 1 1 2 . . . . 2 . 3 Propulsion 27 | . . 2 . . 2 5 1 . 1 3 . . . . . . . . 5 4 4 Utility 33 | . . 2 . . 3 5 . . 1 2 . . . . . . . . 11 2 7 Weapon 4 | . . . . . . . . . . . . . . . . . . . 3 . 1 Highest Loss Streak 13 | . . 2 . . 2 5 3 . 2 4 . 1 1 2 . . . . 5 5 13 To Critical Strikes 1 | . . . . . . 1 . . . . . . . . . . . . . . . Average Backups 12 | 1 8 10 18 18 16 11 13 15 4 4 5 5 5 5 4 5 7 9 9 14 4 Power . | . 1 1 1 . . . . . . . . . . . . . . 1 . 1 . Propulsion 1 | . . 1 . 1 2 1 1 2 . . 1 1 1 1 . . . . . . . Utility 5 | . 2 3 8 9 9 5 6 7 1 1 1 1 1 1 1 2 3 3 3 3 . Weapon 3 | . 4 3 7 4 2 2 2 2 1 1 1 1 1 1 1 1 1 2 4 9 3 Tool/Special . | . . . . . . . . . . . . . . . . . . . . . . Unused Backups 85 | . 7 16 3 23 6 5 . 8 1 . . . . . . 1 . 3 3 8 1 Power 13 | . . 4 . 2 . 1 . . 1 . . . . . . . . 2 . 3 . Propulsion 16 | . 2 5 . 4 1 2 . 2 . . . . . . . . . . . . . Utility 32 | . 1 6 2 7 5 1 . 2 . . . . . . . 1 . 1 3 2 1 Weapon 20 | . 4 1 . 9 . 1 . 2 . . . . . . . . . . . 3 . Tool/Special 4 | . . . 1 1 . . . 2 . . . . . . . . . . . . . Average Slot Usage (%) 88 | . 100 91 95 91 89 75 79 79 83 90 84 81 82 86 85 85 81 81 82 56 71 Engine 10 | . 14 13 14 14 5 1 . . 9 6 5 5 1 2 . . . . . . . Reactor 1 | . . . . . . . . . . . . . . 2 6 9 8 8 7 7 7 Treads 14 | . 28 16 14 25 25 7 10 7 . . . . . . . . . . . . . Wheel 4 | . . 7 10 2 . . 2 3 . . . . . . . . . . . . . Flight 3 | . . . . . . . . 5 21 29 21 21 21 21 22 23 20 21 18 . . Device 9 | . 13 10 14 2 7 10 9 6 16 19 17 15 15 14 14 14 13 12 13 14 21 Storage 8 | . 14 9 14 14 5 5 5 4 . . . . . . . . 2 4 4 2 . Processor 7 | . . . . 11 25 21 23 22 16 9 6 10 10 10 12 14 13 13 10 4 4 Hackware 1 | . . . . . . . . . 5 10 15 15 15 15 14 14 13 13 6 4 7 Protection 3 | . . 4 . . 4 1 5 5 5 5 6 5 5 5 4 4 4 4 6 . . Energy Gun 2 | . 8 5 . . . . . . . . . . . . . . . . . . . Energy Cannon 10 | . . 21 14 7 . . . . . . . . . . . . . . . . 2 Ballistic Gun 3 | . 18 1 14 7 . . . . . . . . . . . . . . . . . Slashing Weapon 3 | . . . . 6 5 5 5 5 5 5 5 5 5 5 4 4 4 4 5 7 7 Peak Build Rating 275 | 7 11 18 16 29 83 81 90 91 91 110 115 115 124 129 148 146 144 153 275 202 229 Average Rating 53 | 5 8 15 15 23 71 66 77 79 78 93 111 112 117 125 141 137 138 142 201 182 198 On Entrance 89 | . 7 10 13 16 27 70 71 82 72 82 110 115 113 124 127 146 137 144 142 178 172 Avg Prop Armor Cover (%) 7 | . . 5 4 7 3 21 12 14 5 2 . 2 . . . . . . 7 . . Naked Turns . | . . . . . . . . . . . . . . . . . . . . . . Heaviest Build 110 | 11 26 62 50 60 71 67 78 77 24 24 24 20 32 38 41 41 41 46 110 67 71 Greatest Support 124 | 40 40 40 20 40 124 94 68 28 29 38 38 38 38 38 60 44 48 54 110 72 97 Greatest Overweight (x) 6 | . . 3 2 5 . 2 2 6 1 . . . . . . . 1 . 1 1 . Average Overweight (x) . | . . 1 2 1 . . 1 1 . . . . . . . . . . . . . Largest Inventory Capacity 25 | 8 10 20 20 20 20 20 20 20 5 5 5 5 5 5 5 5 10 10 25 25 5 Average Capacity 14 | 7 9 13 20 20 20 20 20 18 5 5 5 5 5 5 5 5 8 10 11 19 5 Most Carried 22 | 3 10 20 20 20 20 20 19 20 5 5 5 5 5 5 5 5 10 10 22 22 5 Average Carried 13 | 1 8 11 19 18 17 14 16 17 4 4 4 5 5 4 4 4 7 9 10 14 4 Final Capacity 25 | 8 10 20 20 20 20 20 20 5 5 5 5 5 5 5 5 5 10 10 25 5 5 Final Carried 20 | 3 10 14 20 20 19 14 19 5 5 5 5 5 5 5 5 5 10 10 19 4 4 Class Distribution -------------------- 37% | Mutant 22% | Derelict-Mutant 8% | Subdweller-Mutant 8% | Hacker-Ninja 5% | Scavenger-Mutant 5% | Hacker-Sprinter 3% | Assassin Dominant Class ---------------- Mutant | -10/Materials Derelict-Mutant | -10/Subcaves Mutant | -7/Recycling Mutant | -7/Scraptown Assassin | -5/Factory Scavenger-Mutant | -5/Upper Caves Scavenger-Mutant | -5/Upper Caves Scavenger-Mutant | -5/Zhirov Scout | -4/Proximity Caves Hacker-Ninja | -4/Factory Hacker-Sprinter | -4/Upper Caves Hacker-Sprinter | -4/Upper Caves Hacker-Sprinter | -4/Warlord Hacker-Sprinter | -3/Proximity Caves Hacker-Ninja | -3/Research Hacker-Ninja | -3/Testing Hacker-Ninja | -2/Research Hacker-Ninja | -2/Quarantine Hacker-Ninja | -2/Protoforge Hacker-Ninja | -1/Access Wizard-Ninja | -1/Command Resources | -11 -10 -10 -7 -7 -5 -5 -5 -5 -4 -4 -4 -4 -4 -3 -3 -3 -2 -2 -2 -1 -1 ----------- Run | Yrd Mat Sub Rec Scr Fac Upp Upp Zhi Pro Fac Upp Upp War Pro Res Tes Res Qua Frg Acc Com Matter Collected 7418 | 285 350 882 90 80 603 468 295 . 478 81 119 19 . 345 . 60 45 . 2865 219 134 Remotely . | . . . . . . . . . . . . . . . . . . . . . . Salvage Created 7493 | 126 404 799 75 . 969 417 34 . 218 105 . 231 . 388 . . 50 . 2879 265 533 Parts 335 | 9 28 55 6 . 51 12 2 . 8 8 . 1 . 8 . . 4 . 112 12 19 Haulers Intercepted 4 | . 2 . . . 1 . . . . . . . . 1 . . . . . . . Recyclers Shooed 2 | . . . . . 2 . . . . . . . . . . . . . . . . Parts Field Recycled . | . . . . . . . . . . . . . . . . . . . . . . Retrieved Matter . | . . . . . . . . . . . . . . . . . . . . . . Parts Self-Destructed 114 | . . 18 . . . 15 14 . 43 . 4 10 . 10 . . . . . . . Prevented 86 | . . . . . . 6 10 . 46 . 9 10 . 5 . . . . . . . Parts Restored 5 | . . . . . . . . . . . . . . . . . . . 5 . . Faulty 5 | . . . . . . . . . . . . . . . . . . . 5 . . Kills | -11 -10 -10 -7 -7 -5 -5 -5 -5 -4 -4 -4 -4 -4 -3 -3 -3 -2 -2 -2 -1 -1 ------- Run | Yrd Mat Sub Rec Scr Fac Upp Upp Zhi Pro Fac Upp Upp War Pro Res Tes Res Qua Frg Acc Com Combat Hostiles Destroyed 130 | . 11 15 1 . 11 15 3 . 4 4 . . . 6 . . . . 49 2 9 Melee 34 | . . . . . 11 4 1 . 1 1 . . . . . . . . 15 1 . Guns 7 | . 4 3 . . . . . . . . . . . . . . . . . . . Cannons 12 | . . 9 1 . . . . . . . . . . . . . . . . 1 1 AOE 51 | . 7 3 . . . 11 2 . 3 3 . . . 6 . . . . 12 . 4 Classes Destroyed 25 | 2 5 4 1 . 3 2 . . . . . . . 1 . . . . 7 . . Worker 4 | . . . . . 1 . . . . . . . . . . . 1 . . . 2 Builder 6 | . . . 1 . 2 . . . . . . . . . . . 1 . 2 . . Tunneler 3 | 3 . . . . . . . . . . . . . . . . . . . . . Hauler 4 | . 2 . . . 1 . . . . . . . . 1 . . . . . . . Recycler 4 | 1 1 . . . 2 . . . . . . . . . . . . . . . . Mechanic 4 | . 1 . . . . . . . . . . . . . . . . . 2 . 1 Drone 13 | . . . . . . . . . . . . . . . . . . . 13 . . Turret 1 | . . 1 . . . . . . . . . . . . . . . . . . . Watcher 8 | . 1 . . . . . . . . . . . . . . . . . 2 2 3 Swarmer 18 | . 6 1 . . 3 2 3 . . 3 . . . . . . . . . . . Cutter 4 | . . . . . . . . . . . . . . . . . . . . . 4 Grunt 27 | . 5 2 . . 4 5 . . 3 . . . . 1 . . . . 4 2 1 Brawler 6 | . . . . . . 5 . . . . . . . . . . . . 1 . . Duelist 3 | . . . . . . 1 . . 1 . . . . . . . . . 1 . . Protector 2 | . . . . . . . . . . . . . . 2 . . . . . . . Researcher 4 | . . . . . . . . . . . . . . . . . . . 4 . . Sentry 12 | . . 1 1 . . 2 . . . . . . . . . . . . 8 . . Hunter 5 | . . . . . 1 . . . . 1 . . . 2 . . . . 1 . . Programmer 4 | . . . . . 3 . . . . . . . . 1 . . . . . . . M Guard 2 | . . . . . . . . . . . . . . . . . . . . . 2 Decapitator 9 | . . . . . . . . . . . . . . . . . . . 9 . . Immortal 4 | . . . . . . . . . . . . . . . . . . . 4 . . Combat Programmer 2 | . . . . . . . . . . . . . . . . . . . . . 2 Striker 1 | . . . . . . . . . . . . . . . . . . . 1 . . Executioner 1 | . . . . . . . . . . . . . . . . . . . 1 . . Alpha 7 2 | . . . . . . . . . . . . . . . . . . . 2 . . V-Series 4 | . . . . . . . . . . . . . . . . . . . 4 . . Artisan 1 | . . 1 . . . . . . . . . . . . . . . . . . . Subdweller 13 | . . 13 . . . . . . . . . . . . . . . . . . . Packrat 3 | . . . . . . . . . . . . 3 . . . . . . . . . Best Kill Streak 11 | 4 3 2 1 . 3 11 3 . 3 4 . . . 6 . . 2 . 11 1 8 Combat Bots Only 11 | . 3 2 1 . 3 11 3 . 3 4 . . . 5 . . . . 10 1 5 Max Kills in Single Turn 4 | 1 2 1 1 . 1 4 2 . 2 3 . 1 . 2 . . 1 . 3 1 2 Gunslinging . | . . . . . . . . . . . . . . . . . . . . . . Exploded 4 | . 2 1 . . . 4 2 . 2 3 . . . 2 . . . . 3 . 2 Melee 1 | . . . . . 1 1 1 . 1 1 . . . . . . . . 1 1 . Uniques/NPCs Destroyed . | . . . . . . . . . . . . . . . . . . . . . . Combat | -11 -10 -10 -7 -7 -5 -5 -5 -5 -4 -4 -4 -4 -4 -3 -3 -3 -2 -2 -2 -1 -1 -------- Run | Yrd Mat Sub Rec Scr Fac Upp Upp Zhi Pro Fac Upp Upp War Pro Res Tes Res Qua Frg Acc Com Hostile Shots Fired 879 | . 54 75 . . 123 105 36 . 23 37 . 1 . 6 5 4 12 4 196 101 97 Missed 297 | . 16 24 . . 36 27 9 . 11 15 . . . 1 4 2 3 2 75 47 25 Intercepted 2 | . . . . . . . . . . . . . . . . . . . . . 2 Deflected 3 | . . . . . . . . . . . . . . . . . . . 2 1 . Hits 582 | . 38 51 . . 87 78 27 . 12 22 . 1 . 5 1 2 9 2 121 54 72 Melee 34 | . . . . . . 17 . . . . . . . . . . . . 13 . 4 Projectile 548 | . 38 51 . . 87 61 27 . 12 22 . 1 . 5 1 2 9 2 108 54 68 AOE 13 | . . 5 . . 2 . . . . . . . . . . . . . 4 . 2 Critical Strikes 31 | . . 2 . . 1 5 . . 2 . . . . . . . . . 14 1 6 Part Disruptions 6 | . . . . . . . . . . . . . . . . . . . 1 . 5 Damage Taken 17826 | . 416 1484 17 . 1664 2088 502 . 425 446 . 38 66 192 65 30 223 70 6228 1133 2739 Core 3327 | . 97 75 . . 116 149 68 . 26 109 . 8 . 18 . . 20 . 1031 426 1184 Absorbed by Shields 45 | . . . . . 27 . . . . . . . . . . . . . 18 . . Redirected to Shielding 87 | . . . . . . . . . . . . . . . . . . . 87 . . Regen/Repaired (Parts) 1059 | . . . . . . . . . 11 . . . 10 . . . 90 58 890 . . Core Remaining (%) 65 | 100 . . . 31 . . . . 64 . . . . 88 . 100 . . 8 . . Volleys Fired 372 | 14 39 184 3 . . 11 1 . 2 1 . . . 8 1 . . . 87 2 19 Largest 2 | 2 2 2 2 . . 1 1 . 1 1 . . . 1 1 . . . 2 1 1 Hottest 300 | 40 100 160 83 . . 46 46 . 46 46 . . . 70 . . . . 300 140 140 Shots Fired 480 | 28 67 246 6 . . 11 1 . 2 1 . . . 8 1 . . . 88 2 19 Gun 210 | 28 56 91 3 . . . . . . . . . . . . . . . 22 . 10 Cannon 156 | . . 140 3 . . . . . . . . . . . . . . . 4 2 7 Launcher 113 | . 11 15 . . . 11 1 . 2 1 . . . 8 . . . . 62 . 2 Special 1 | . . . . . . . . . . . . . . . 1 . . . . . . Kinetic 96 | 28 44 21 3 . . . . . . . . . . . . . . . . . . Thermal 249 | . 12 221 3 . . . . . . . . . . . . . . . 4 2 7 Explosive 58 | . 11 4 . . . 11 1 . 2 1 . . . 8 1 . . . 17 . 2 Electromagnetic 52 | . . . . . . . . . . . . . . . . . . . 52 . . Entropic 25 | . . . . . . . . . . . . . . . . . . . 15 . 10 Robot Hit Streak 18 | 12 13 18 6 . . 9 . . 11 . . . . 13 . . . . 12 . 11 Robot Miss Streak 4 | 2 2 2 . . . 1 . . . . . . . . . . . . 2 . 4 Penetration Max 1 | . . . . . . . . . . . . . . . . . . . 1 . 1 Secondary Targets 1 | . 1 . . . . . . . . . . . . . . . . . . . . Max Gunslinging Chain 1 | . 1 . . . . . . . . . . . . . . . . . . . . Autonomous 21 | . . . . . . . . . . . . . . . . . . . 14 6 1 Shots Hit Robots 373 | 21 36 69 5 . 43 32 2 . 8 1 . 3 . 6 . . 2 . 79 6 60 Core Hits 321 | 8 24 34 3 . 20 38 3 . 7 5 . 2 . 22 . . 1 . 112 5 37 Critical Kills 10 | . . . . . . . . . . . . . . . . . . . 6 . 4 Critical Parts Destroyed . | . . . . . . . . . . . . . . . . . . . . . . Critical Strikes 16 | . 1 . . . . . . . . . . . . . . . . . 11 . 4 Burn 1 | . 1 . . . . . . . . . . . . . . . . . . . . Meltdown 10 | . . . . . . . . . . . . . . . . . . . 6 . 4 Impale 3 | . . . . . . . . . . . . . . . . . . . 3 . . Melee Attacks 329 | . . . . . 55 32 6 . 14 15 2 3 2 10 1 14 12 13 73 14 63 Impact . | . . . . . . . . . . . . . . . . . . . . . . Slashing 311 | . . . . . 55 32 6 . 14 15 2 3 2 10 1 14 12 13 55 14 63 Piercing 18 | . . . . . . . . . . . . . . . . . . . 18 . . Sneak Attacks 37 | . . . . . 8 1 . . . . . 3 . . . . 2 . 19 1 3 Combat Hostiles 2 | . . . . . . . . . . . . . . . . . . . 2 . . Follow-up Attacks 4 | . . . . . . 2 . . . . . . . 1 . . . . 1 . . Martial Strikes 8 | . . . . . . . . . . . . . . . . . . . 8 . . Damage Inflicted 30271 | 181 789 2055 87 . 2128 2977 342 . 659 289 . 255 . 2309 . . 183 . 12364 874 4779 Guns 2094 | 181 438 422 31 . . . . . . . . . . . . . . . 701 . 321 Cannons 3323 | . . 1095 52 . . . . . . . . . . . . . . . 1238 518 420 Explosions 13313 | . 351 538 . . . 2133 256 . 404 239 . . . 2073 . . . . 6328 . 991 Melee 11385 | . . . . . 2119 844 86 . 255 50 . 255 . 236 . . 183 . 3954 356 3047 Ramming 156 | . . . 4 . 9 . . . . . . . . . . . . . 143 . . Kinetic 1171 | 181 335 624 31 . . . . . . . . . . . . . . . . . . Thermal 1867 | . 103 1386 52 . . . . . . . . . . . . . . . . . 326 Explosive 10990 | . 351 45 . . . 2133 256 . 404 239 . . . 2073 . . . . 4498 . 991 Electromagnetic 1991 | . . . . . . . . . . . . . . . . . . . 1991 . . Impact . | . . . . . . . . . . . . . . . . . . . . . . Slashing 10555 | . . . . . 2119 844 86 . 255 50 . 255 . 236 . . 183 . 3124 356 3047 Piercing 830 | . . . . . . . . . . . . . . . . . . . 830 . . Entropic 861 | . . . . . . . . . . . . . . . . . . . 540 . 321 Phasic 1850 | . . . . . . . . . . . . . . . . . . . 1238 518 94 Highest Corruption 38 | . . 5 . . 5 25 25 25 38 3 3 5 6 . . . . . 28 . 4 Average Corruption 12 | . . 4 . . 2 21 25 25 29 2 3 3 5 . . . . . 11 . 2 Corruption Purged 5 | . . 5 . . . . . . . . . . . . . . . . . . . Corruption Blocked . | . . . . . . . . . . . . . . . . . . . . . . Effects 306 | . . 74 . . 10 41 54 9 46 2 1 3 1 . . . . . 64 . 1 Message Errors 68 | . . 15 . . 1 9 13 2 12 . . 1 . . . . . . 15 . . Matter Fused 76 | . . 18 . . 2 8 18 4 11 . . 1 . . . . . . 14 . . Heat Flow Errors 40 | . . 10 . . 1 9 5 1 6 . . 1 . . . . . . 6 . 1 Energy Discharges 33 | . . 11 . . 2 4 6 . 3 1 . . . . . . . . 6 . . Parts Rejected 2 | . . . . . 1 1 . . . . . . . . . . . . . . . Parts Fused 2 | . . . . . . . . . 1 . . . . . . . . . 1 . . Data Loss (minor) 41 | . . 7 . . 2 5 6 2 6 . 1 . 1 . . . . . 11 . . Data Loss (major) 17 | . . 5 . . 1 2 2 . 3 . . . . . . . . . 4 . . Misfires 6 | . . 6 . . . . . . . . . . . . . . . . . . . Alerts 8 | . . 1 . . . 2 2 . . 1 . . . . . . . . 2 . . Misdirections 11 | . . . . . . 1 2 . 4 . . . . . . . . . 4 . . Weapon Failures 2 | . . 1 . . . . . . . . . . . . . . . . 1 . . Overload Shots . | . . . . . . . . . . . . . . . . . . . . . . Overflow Damage 1992 | . . 22 . . 193 53 49 . . 6 . 66 . 29 . . 60 . 1326 30 158 Projectiles 94 | . . . . . . . . . . . . . . . . . . . 33 30 31 Explosions 519 | . . 22 . . . 48 49 . . 6 . . . 29 . . . . 320 . 45 Melee 1379 | . . . . . 193 5 . . . . . 66 . . . . 60 . 973 . 82 Knockbacks 2 | . . . . . . . . . . . . . . . . . . . 2 . . Impact 2 | . . . . . . . . . . . . . . . . . . . 2 . . Kinetic . | . . . . . . . . . . . . . . . . . . . . . . Secondary . | . . . . . . . . . . . . . . . . . . . . . . Self-Inflicted Damage 1192 | . 36 4 . . . 39 30 . . . . . . . . . . . 905 . 178 Shots 46 | . 1 1 . . . 2 1 . . . . . . . . . . . 37 . 4 Rammed 5 | . . . 1 . 1 . . . . . . . . . . . . . 3 . . Targets Rammed 7 | . 1 . 2 . 1 . . . . . . . . . . . . . 3 . . Kicked . | . . . . . . . . . . . . . . . . . . . . . . Crushed 2 | . 1 . 1 . . . . . . . . . . . . . . . . . . Highest Temperature 338 | . 180 312 63 . 132 251 268 204 261 26 . 186 . 40 . . 2 183 338 132 223 Average Temperature 72 | . 73 70 32 . 66 104 122 109 66 4 . 94 . 18 . . 2 25 113 62 121 Received Heat Transfer 2213 | . 102 204 . . 300 237 . . 78 60 . . . 12 . . 27 9 680 180 324 Thermoelectric Energy+ 190 | . . . . . . . . . . . . . . . . . . . . . 190 Effects 4 | . . . . . . 2 1 . . . . . . . . . . . . . 1 Energy Bleed 2 | . . . . . . . 1 . . . . . . . . . . . . . 1 Interference 2 | . . . . . . 2 . . . . . . . . . . . . . . . Siege Activations . | . . . . . . . . . . . . . . . . . . . . . . Martial Activations . | . . . . . . . . . . . . . . . . . . . . . . Shielding Activations . | . . . . . . . . . . . . . . . . . . . . . . Robots Disrupted 1 | . . . . . . 1 . . . . . . . . . . . . . . . Combat Hostiles 1 | . . . . . . 1 . . . . . . . . . . . . . . . Robots Corrupted 16 | . . . . . . . . . . . . . . . . . . . 16 . . Combat Hostiles 16 | . . . . . . . . . . . . . . . . . . . 16 . . Parts Fried 25 | . . . . . 1 . . . . . . . . . . . . . 24 . . Impact Corruptions 1 | . . . . . . . . . . . . . . . . . . . 1 . . Robots Melted 10 | . . . . . . . . . . . . . . . . . . . 6 . 4 Combat Hostiles 10 | . . . . . . . . . . . . . . . . . . . 6 . 4 Parts Melted 10 | . 1 3 1 . . . . . . . . . . . . . . . 2 . 3 Heat Transferred 2548 | . 370 1867 111 . . . . . . . . . . . . . . . . . 200 Parts Sabotaged . | . . . . . . . . . . . . . . . . . . . . . . Parts Stolen . | . . . . . . . . . . . . . . . . . . . . . . Parts Stripped . | . . . . . . . . . . . . . . . . . . . . . . Power Chain Reactions . | . . . . . . . . . . . . . . . . . . . . . . Alert | -11 -10 -10 -7 -7 -5 -5 -5 -5 -4 -4 -4 -4 -4 -3 -3 -3 -2 -2 -2 -1 -1 ------- Run | Yrd Mat Sub Rec Scr Fac Upp Upp Zhi Pro Fac Upp Upp War Pro Res Tes Res Qua Frg Acc Com Maximum Alert Level 4 | . . . . . 1 . . . . 1 . . . . . . . . 4 4 4 Low Security (%) 63 | 100 100 . 100 . 66 . . . . 93 . . . . 100 100 100 100 20 . . Level 1 6 | . . . . . 33 . . . . 6 . . . . . . . . 4 . . Level 2 1 | . . . . . . . . . . . . . . . . . . . 4 . . Level 3 23 | . . . . . . . . . . . . . . . . . . . 59 82 54 Level 4 5 | . . . . . . . . . . . . . . . . . . . 10 17 45 Level 5 . | . . . . . . . . . . . . . . . . . . . . . . High Security . | . . . . . . . . . . . . . . . . . . . . . . Max Security . | . . . . . . . . . . . . . . . . . . . . . . Peak Influence 1422 | 10 123 . 30 . 268 . . . . 244 . . . . 142 132 97 80 1422 1387 1375 Initial 882 | . . . 9 . . . . . . 44 . . . . 128 74 67 39 . 835 882 Average 330 | 1 25 . 1 . 107 . . . . 111 . . . . 123 120 64 15 736 932 1061 Influence Increases 7972 | 20 367 177 77 . 625 317 500 . 513 500 . 260 . 341 54 127 143 148 2279 826 698 Destroy 0b10 Robot/C 3660 | . 220 120 20 . 420 300 340 . 320 160 . 200 . 200 . . . . 880 200 280 Destroy 0b10 Robot/NC 275 | 20 25 . 5 . 40 . . . 10 10 . . . 25 . . 15 . 80 15 30 Destroy Leader 318 | . 46 10 . . 64 10 30 . 10 30 . 10 . 30 . . 2 . 24 26 26 Allied During Kill 515 | . . 2 . . 48 7 100 . 113 16 . 50 . 86 . . 4 . . 47 42 Successful Hack 232 | . 10 . 22 . . . . . . 8 . . . . . 47 44 31 48 22 . Select Force Hacks 30 | . . . 30 . . . . . . . . . . . . . . . . . . Disable Machine 600 | . 30 . . . 15 . . . . . . . . . . 60 . 90 405 . . Anti-Garrison Action 150 | . . . . . . . . . . . . . . . . . . . 150 . . Destroy Structure 447 | . 36 . . . 8 . . . . 66 . . . . 24 20 48 12 107 21 105 Partial Spotted 135 | . . . . . . . . . . 30 . . . . 15 . 15 15 45 . 15 Lose Combat Pursuer 1110 | . . 45 . . 30 . 30 . 60 180 . . . . 15 . 15 . 540 195 . Active Sensor Use 500 | . . . . . . . . . . . . . . . . . . . . 300 200 Influence Decreases 6842 | 20 318 205 98 . 417 525 272 228 443 356 140 195 139 150 113 138 194 218 886 840 947 Entered New Map 1864 | . . 25 12 . . 78 . 228 . 26 80 15 139 . 63 58 54 31 . 558 497 Time Decay 3394 | 20 211 105 86 . 347 297 222 . 221 160 60 150 . 70 50 80 140 97 676 222 180 Lost Part 740 | . . 10 . . 70 130 10 . 20 50 . 10 . 20 . . . . 210 60 150 Lost Ally 647 | . . 65 . . . 20 40 . 202 120 . 20 . 60 . . . . . . 120 Purge Threat 197 | . 107 . . . . . . . . . . . . . . . . 90 . . . Squads Dispatched 38 | . 3 . . . 5 . . . . 6 . . . . 1 . 1 3 7 6 6 Investigation 12 | . 1 . . . 1 . . . . 2 . . . . . . . . 3 3 2 Extermination 10 | . . . . . 2 . . . . 1 . . . . 1 . 1 3 . 1 1 Reinforcement 10 | . 2 . . . 2 . . . . 3 . . . . . . . . 2 . 1 Assault 6 | . . . . . . . . . . . . . . . . . . . 2 2 2 Garrison . | . . . . . . . . . . . . . . . . . . . . . . Intercept . | . . . . . . . . . . . . . . . . . . . . . . Searches Triggered . | . . . . . . . . . . . . . . . . . . . . . . Construction Impeded . | . . . . . . . . . . . . . . . . . . . . . . Haulers Reinforced 1 | . . . . . 1 . . . . . . . . . . . . . . . . Active Scanning Responses 5 | . . . . . . . . . . . . . . . . . . . . 3 2 Cargo Convoy Interrupts 1 | . . . . . 1 . . . . . . . . . . . . . . . . Stealth | -11 -10 -10 -7 -7 -5 -5 -5 -5 -4 -4 -4 -4 -4 -3 -3 -3 -2 -2 -2 -1 -1 --------- Run | Yrd Mat Sub Rec Scr Fac Upp Upp Zhi Pro Fac Upp Upp War Pro Res Tes Res Qua Frg Acc Com Distress Signals 14 | . . . . . . . . . 1 . . . . 1 . 1 . . 10 1 . Communications Jammed 12 | . . . . . . . . . . . . . . . . 8 4 . . . . Distress Signals 11 | . . . . . . . . . . . . . . . . 8 3 . . . . Times Spotted 359 | . 22 26 1 . 27 17 19 . 19 18 1 2 1 7 5 4 8 6 132 23 21 Peak Tracking Total 21 | . 3 6 1 . 6 13 6 . 7 9 1 1 1 6 4 5 5 2 21 9 10 Tactical Retreats 33 | . . 1 . . 1 . 2 . 1 3 . . . . 1 . 1 1 16 5 1 ECM-based Alert Blocks 6 | . . . . . . . . . . . . . . . . . . 2 4 . . Traps | -11 -10 -10 -7 -7 -5 -5 -5 -5 -4 -4 -4 -4 -4 -3 -3 -3 -2 -2 -2 -1 -1 ------- Run | Yrd Mat Sub Rec Scr Fac Upp Upp Zhi Pro Fac Upp Upp War Pro Res Tes Res Qua Frg Acc Com Traps Triggered 23 | . 2 1 . . . . 1 . 1 . . . 1 . 1 . . . 16 . . Indirectly 5 | . . . . . . . . . . . . . . . . . . . 5 . . Trap Hack Attempts . | . . . . . . . . . . . . . . . . . . . . . . Triggered . | . . . . . . . . . . . . . . . . . . . . . . Disarmed . | . . . . . . . . . . . . . . . . . . . . . . Reprogrammed . | . . . . . . . . . . . . . . . . . . . . . . Reused . | . . . . . . . . . . . . . . . . . . . . . . Traps Extracted . | . . . . . . . . . . . . . . . . . . . . . . Installed 5 | . . 5 . . . . . . . . . . . . . . . . . . . Triggered . | . . . . . . . . . . . . . . . . . . . . . . Most Traps Carried 2 | . . . . 1 1 2 2 2 . . . . . . . . . . . . . Machines | -11 -10 -10 -7 -7 -5 -5 -5 -5 -4 -4 -4 -4 -4 -3 -3 -3 -2 -2 -2 -1 -1 ---------- Run | Yrd Mat Sub Rec Scr Fac Upp Upp Zhi Pro Fac Upp Upp War Pro Res Tes Res Qua Frg Acc Com Machines Disabled 59 | . 2 5 . . 1 2 1 . . . 1 1 . . . 4 . 6 36 . . Max in Single Turn 5 | . 1 4 . . 1 1 . . . . 1 . . . . 1 . 1 5 . . Garrison Access 4 | . . . . . . . . . . . . . . . . 1 1 1 1 . . Machines Repaired . | . . . . . . . . . . . . . . . . . . . . . . Machines Dismantled . | . . . . . . . . . . . . . . . . . . . . . . Machines Sabotaged . | . . . . . . . . . . . . . . . . . . . . . . Overloaded Fab Kills . | . . . . . . . . . . . . . . . . . . . . . . Hacking | -11 -10 -10 -7 -7 -5 -5 -5 -5 -4 -4 -4 -4 -4 -3 -3 -3 -2 -2 -2 -1 -1 --------- Run | Yrd Mat Sub Rec Scr Fac Upp Upp Zhi Pro Fac Upp Upp War Pro Res Tes Res Qua Frg Acc Com Machines Accessed 73 | . 4 4 4 4 4 . 1 4 1 3 1 . 2 . 2 7 8 9 6 7 2 Terminals 38 | . 4 . 3 . 2 . . . . 2 1 . . . 2 3 4 6 3 6 2 Fabricators 1 | . . . . . . . . . . . . . . . . . . . . 1 . Repair Stations 3 | . . . . . . . . . . . . . . . . . 2 1 . . . Recycling Units 7 | . . . 1 . 1 . . . 1 1 . . . . . . . . 3 . . Scanalyzers 6 | . . . . . 1 . . . . . . . . . . 3 1 1 . . . Garrison Access 3 | . . . . . . . . . . . . . . . . 1 1 1 . . . Total Hacks 198 | . 17 11 11 12 8 . 1 17 2 6 1 . 2 . 4 27 19 23 20 13 4 Successful 123 | . 10 11 8 12 2 . 1 17 1 4 1 . 2 . . 11 10 10 14 7 2 Failed 75 | . 7 . 3 . 6 . . . 1 2 . . . . 4 16 9 13 6 6 2 Catastrophic 9 | . 1 . 1 . 2 . . . . . . . . . . 3 1 . . 1 . Database Lockouts . | . . . . . . . . . . . . . . . . . . . . . . Manual 49 | . 14 . 9 . 2 . . . . 1 . . . . . 8 . 2 9 4 . Terminals 120 | . 17 . 9 . 4 . . . . 5 1 . . . 4 20 13 18 14 11 4 Fabricators 2 | . . . . . . . . . . . . . . . . . . . . 2 . Repair Stations 6 | . . . . . . . . . . . . . . . . . 4 2 . . . Recycling Units 13 | . . . 2 . 2 . . . 2 1 . . . . . . . . 6 . . Scanalyzers 10 | . . . . . 2 . . . . . . . . . . 6 1 1 . . . Garrison Access 4 | . . . . . . . . . . . . . . . . 1 1 2 . . . Terminal Hacks 91 | . 4 11 4 12 . . 1 17 . 3 1 . 2 . . 8 5 6 9 6 2 Record 30 | . . 8 . 10 . . . 5 . 1 1 . . . . . . . 5 . . Part Schematic 4 | . . . . . . . . 4 . . . . . . . . . . . . . Robot Analysis 5 | . . . . . . . . 4 . . . . . . . . 1 . . . . Prototype ID Bank 10 | . 2 . 2 . . . . 4 . . . . . . . 1 1 . . . . Open Door 9 | . . 1 . 1 . . 1 . . . . . 2 . . . . . . 3 1 Level Access Points 2 | . . . . . . . . . . . . . . . . 1 . . 1 . . Branch Access Points 3 | . . . . . . . . . . 1 . . . . . . 1 . . 1 . Machine Index 1 | . . . . . . . . . . . . . . . . . 1 . . . . Terminal Index 3 | . . . 2 . . . . . . . . . . . . 1 . . . . . Alert Level 2 | . . . . . . . . . . . . . . . . 1 . . . 1 . Unreport Threat 2 | . 1 . . . . . . . . . . . . . . . . 1 . . . Security Status 1 | . . . . . . . . . . . . . . . . . . . 1 . . Recall Extermination 2 | . . . . . . . . . . . . . . . . . . 2 . . . Recall Reinforcements 2 | . 1 . . . . . . . . . . . . . . . . . . 1 . Registered Components 4 | . . . . . . . . . . 1 . . . . . 1 . 1 1 . . Registered Prototypes 4 | . . . . . . . . . . . . . . . . 2 1 1 . . . Zone Layout 3 | . . . . . . . . . . . . . . . . 1 . 1 1 . . Proto ID Catalog 2 | . . 1 . 1 . . . . . . . . . . . . . . . . . Disengage Seal 1 | . . . . . . . . . . . . . . . . . . . . . 1 Release Object 1 | . . 1 . . . . . . . . . . . . . . . . . . . Fabricator Hacks 1 | . . . . . . . . . . . . . . . . . . . . 1 . Network Status 1 | . . . . . . . . . . . . . . . . . . . . 1 . Repair Station Hacks 5 | . . . . . . . . . . . . . . . . . 3 2 . . . Scan Component 3 | . . . . . . . . . . . . . . . . . 2 1 . . . Repair 2 | . . . . . . . . . . . . . . . . . 1 1 . . . Recycling Unit Hacks 1 | . . . . . . . . . 1 . . . . . . . . . . . . Retrieve Components 1 | . . . . . . . . . 1 . . . . . . . . . . . . Scanalyzer 4 | . . . . . 1 . . . . . . . . . . 1 1 1 . . . Retrieve Study 4 | . . . . . 1 . . . . . . . . . . 1 1 1 . . . Garrison Access Hacks 3 | . . . . . . . . . . . . . . . . 1 1 1 . . . Seal Access 3 | . . . . . . . . . . . . . . . . 1 1 1 . . . Unauthorized Hacks 18 | . 6 . 4 . 1 . . . . 1 . . . . . 1 . . 5 . . Terminals 12 | . 6 . 3 . . . . . . . . . . . . 1 . . 2 . . Track 1 | . . . . . . . . . . . . . . . . . . . 1 . . Botnet 6 | . 2 . 2 . . . . . . . . . . . . 1 . . 1 . . Operators 1 | . 1 . . . . . . . . . . . . . . . . . . . . Skim 4 | . 3 . 1 . . . . . . . . . . . . . . . . . . Fabricators . | . . . . . . . . . . . . . . . . . . . . . . Repair Stations . | . . . . . . . . . . . . . . . . . . . . . . Recycling Units 6 | . . . 1 . 1 . . . . 1 . . . . . . . . 3 . . Tunnel 1 | . . . 1 . . . . . . . . . . . . . . . . . . Fedlink 5 | . . . . . 1 . . . . 1 . . . . . . . . 3 . . Scanalyzers . | . . . . . . . . . . . . . . . . . . . . . . Garrison Access . | . . . . . . . . . . . . . . . . . . . . . . Data Cores Recovered . | . . . . . . . . . . . . . . . . . . . . . . Used . | . . . . . . . . . . . . . . . . . . . . . . Hacking Detections 41 | . 4 . 4 . 3 . . . . 2 . . . . 2 5 6 7 2 5 1 Full Trace Events 1 | . . . . . . . . . . 1 . . . . . . . . . . . Feedback Events . | . . . . . . . . . . . . . . . . . . . . . . Feedback Blocked . | . . . . . . . . . . . . . . . . . . . . . . Robot Schematics Acquired . | . . . . . . . . . . . . . . . . . . . . . . Robots Built . | . . . . . . . . . . . . . . . . . . . . . . Authchips . | . . . . . . . . . . . . . . . . . . . . . . Time . | . . . . . . . . . . . . . . . . . . . . . . Total Robot Build Rating . | . . . . . . . . . . . . . . . . . . . . . . Part Schematics Acquired 8 | . . . . . . . . 4 . . . . . . . . . . 4 . . Parts Built . | . . . . . . . . . . . . . . . . . . . . . . Authchips . | . . . . . . . . . . . . . . . . . . . . . . Time . | . . . . . . . . . . . . . . . . . . . . . . Total Part Build Rating . | . . . . . . . . . . . . . . . . . . . . . . Part Studies Acquired 4 | . . . . . 1 . . . . . . . . . . 1 1 1 . . . Parts Repaired 2 | . . . . . . . . . . . . . . . . . 1 1 . . . Time 117 | . . . . . . . . . . . . . . . . . 28 89 . . . Parts Recycled . | . . . . . . . . . . . . . . . . . . . . . . Recycled Matter . | . . . . . . . . . . . . . . . . . . . . . . Retrieved Matter . | . . . . . . . . . . . . . . . . . . . . . . Retrieved Components 2 | . . . . . . . . . 2 . . . . . . . . . . . . Parts Scanalyzed . | . . . . . . . . . . . . . . . . . . . . . . Part Schematics Acquired . | . . . . . . . . . . . . . . . . . . . . . . Parts Damaged . | . . . . . . . . . . . . . . . . . . . . . . Bothacking | -11 -10 -10 -7 -7 -5 -5 -5 -5 -4 -4 -4 -4 -4 -3 -3 -3 -2 -2 -2 -1 -1 ------------ Run | Yrd Mat Sub Rec Scr Fac Upp Upp Zhi Pro Fac Upp Upp War Pro Res Tes Res Qua Frg Acc Com Used RIF Installer . | . . . . . . . . . . . . . . . . . . . . . . Robots Hacked . | . . . . . . . . . . . . . . . . . . . . . . Non-combat . | . . . . . . . . . . . . . . . . . . . . . . Combat . | . . . . . . . . . . . . . . . . . . . . . . Robot Hacks Applied . | . . . . . . . . . . . . . . . . . . . . . . Relay Couplers Released . | . . . . . . . . . . . . . . . . . . . . . . Fabnet Peak Effective % . | . . . . . . . . . . . . . . . . . . . . . . Robots Rewired 4 | . . . . . . 1 . . 3 . . . . . . . . . . . . Allies Hacked 1 | . . . . . . . . . . . . . . 1 . . . . . . . Hacks Repelled . | . . . . . . . . . . . . . . . . . . . . . . Allies | -11 -10 -10 -7 -7 -5 -5 -5 -5 -4 -4 -4 -4 -4 -3 -3 -3 -2 -2 -2 -1 -1 -------- Run | Yrd Mat Sub Rec Scr Fac Upp Upp Zhi Pro Fac Upp Upp War Pro Res Tes Res Qua Frg Acc Com Total Allies 62 | . . 8 . 1 . 1 8 . 13 9 8 5 . 3 . . 6 . . . . Largest Group 7 | . . 5 1 1 1 1 4 . 7 5 4 4 4 5 . . 4 . . . . Highest-Rated Group 432 | . . 95 19 57 57 85 324 . 432 373 324 324 324 339 . . 324 . . . . Highest-Rated Ally 85 | . . 19 19 57 57 85 85 . 81 81 81 81 81 81 . . 81 . . . . Initial UFD Resources 68 | . . . . . 39 49 49 49 51 51 61 61 61 65 65 65 68 68 68 . . Total Orders 10 | . . . . . . . . . 2 . . . . . . . . . . 3 5 STAY 1 | . . . . . . . . . . . . . . . . . . . . . 1 ROAM 2 | . . . . . . . . . 1 . . . . . . . . . . . 1 GUARD 1 | . . . . . . . . . 1 . . . . . . . . . . . . RETURN 6 | . . . . . . . . . . . . . . . . . . . . 3 3 Ally Attacks 343 | . . 20 6 . 42 4 37 . 58 28 4 30 6 55 . . 4 . . 21 28 Total Damage 12472 | . . 328 118 . 831 48 1932 . 2485 1483 103 796 132 1129 . . 144 . . 1273 1670 Kills 92 | . . 2 . . 12 . 17 . 17 7 . 11 . 6 . . 1 . . 9 10 Allies Corrupted 1 | . . . . . . . . . . . . . . . . . . . . . 1 Allies Melted 2 | . . . . . . . . . 1 . 1 . . . . . . . . . . Intel | -11 -10 -10 -7 -7 -5 -5 -5 -5 -4 -4 -4 -4 -4 -3 -3 -3 -2 -2 -2 -1 -1 ------- Run | Yrd Mat Sub Rec Scr Fac Upp Upp Zhi Pro Fac Upp Upp War Pro Res Tes Res Qua Frg Acc Com Active Infowar (turns) 15907 | 27 1053 306 . 5078 1298 791 631 37 912 326 138 301 236 285 101 169 297 352 2743 465 361 Optics 10840 | . . . . 5076 1298 2 . . . . . . . . 77 169 297 352 2743 465 361 Sensors 4721 | . . . . . 998 443 135 37 875 239 96 301 236 273 79 169 288 325 227 . . A.S.S. 2513 | . . . . . . . . . . . . . . . . . . . 1775 465 273 Terrain 2555 | . . . . . 513 437 471 . 860 274 . . . . . . . . . . . Structural 614 | . . . . . . . . . . . . . . . . . 9 126 479 . . Seismic 1386 | 27 1053 306 . . . . . . . . . . . . . . . . . . . Cloaking 2467 | . . . . . . . . . . 301 104 . . . . . . . 1290 465 307 Jamming 2987 | . . . . . 171 545 44 . . 28 138 301 236 285 98 169 297 352 323 . . ECM 361 | . . . . 2 . . . . . . . . . . . . 69 81 209 . . Robot Analysis Total 5 | . . . . . . . . 4 . . . . . . . . 1 . . . . Derelict Logs Recovered 13 | . . 2 . 5 . . 1 . 1 . 1 3 . . . . . . . . . Drone Launches 22 | . . . . . . . . . . . . . . . . . . . . 12 10 Drone Recoveries 16 | . . . . . . . . . . . . . . . . . . . . 12 4 Exploration | -11 -10 -10 -7 -7 -5 -5 -5 -5 -4 -4 -4 -4 -4 -3 -3 -3 -2 -2 -2 -1 -1 ------------- Run | Yrd Mat Sub Rec Scr Fac Upp Upp Zhi Pro Fac Upp Upp War Pro Res Tes Res Qua Frg Acc Com Turns Passed 31364 | 121 1110 11370 2044 6387 1298 946 1168 234 912 326 138 301 236 285 101 169 297 352 2743 465 361 Spaces Moved 20847 | 47 567 3471 558 2402 630 565 546 190 1190 639 293 536 660 521 288 482 715 955 4608 595 389 Core 4 | 4 . . . . . . . . . . . . . . . . . . . . . Treads 7560 | 43 567 3203 558 2250 630 58 251 . . . . . . . . . . . . . . Legs 524 | . . . . . . 507 17 . . . . . . . . . . . . . . Wheels 818 | . . 268 . 152 . . 278 120 . . . . . . . . . . . . . Hover 2313 | . . . . . . . . . . . . . . . . . . . 1329 595 389 Flight 9628 | . . . . . . . . 70 1190 639 293 536 660 521 288 482 715 955 3279 . . Fastest Speed 7 | 50 160 120 360 155 165 120 120 29 23 20 28 28 28 28 25 25 22 16 7 44 47 Average Speed 122 | 150 160 291 360 261 166 131 144 107 28 23 28 28 28 28 25 25 25 21 25 55 50 Slowest Speed 460 | 160 160 460 360 360 168 260 240 452 98 28 28 32 28 28 25 25 99 22 120 98 53 Overloaded Moves 188 | . . . . . . . . . . . . . . . . . . 32 156 . . Propulsion Burnouts . | . . . . . . . . . . . . . . . . . . . . . . Robots Hopped 8 | . . . . . . . . . 2 1 . . . . . . 3 . 2 . . Potential Cave-ins 16 | . . 5 . . . . . . . . . . . . . . . . 11 . . Cave-ins Triggered 2 | . . 1 . . . . . . . . . . . . . . . . 1 . . Teleports 3 | . . . . . . . . . . . . . . . . . . 2 1 . . Exploration Rate (%) 54 | 5 81 98 81 88 12 67 70 60 63 17 57 68 88 64 11 62 21 88 64 20 19 Regions Visited 21 Branch Regions 15 Pre-discovered Areas 8 | . . 1 1 1 . . . 3 . 1 1 . . . . . . . . . . Known Exits Taken 17 | . . 1 . . 1 1 1 1 1 1 1 1 1 1 1 1 1 1 1 1 . Unknown Exits Taken 4 | 1 1 . 1 1 . . . . . . . . . . . . . . . . . Scrap Searched 37 | . . 20 . 6 . 2 1 . 3 . 2 2 . 1 . . . . . . . Spaces Dug 130 | . . 42 . . 2 . 3 . . 13 1 . . 5 2 10 10 4 34 4 . Terrain Destroyed 646 | . 51 224 . . 2 89 13 . 9 19 1 . . 70 11 10 10 4 79 8 46 Melee 58 | . . . . . 2 . 3 . . 13 1 . . 5 1 10 10 4 5 4 . Projectile 139 | . . 80 . . . . . . . . . . . . 1 . . . 44 4 10 AOE 449 | . 51 144 . . . 89 10 . 9 6 . . . 65 9 . . . 30 . 36 Terrain Rammed . | . . . . . . . . . . . . . . . . . . . . . . Walls Destroyed . | . . . . . . . . . . . . . . . . . . . . . . Machines Disabled . | . . . . . . . . . . . . . . . . . . . . . . Actions | -11 -10 -10 -7 -7 -5 -5 -5 -5 -4 -4 -4 -4 -4 -3 -3 -3 -2 -2 -2 -1 -1 --------- Run | Yrd Mat Sub Rec Scr Fac Upp Upp Zhi Pro Fac Upp Upp War Pro Res Tes Res Qua Frg Acc Com Total 25945 | 71 704 4499 586 2535 818 716 914 229 1739 791 345 681 707 634 314 509 805 1079 6023 724 522 Wait 3399 | 1 49 671 7 38 43 80 333 1 477 104 44 142 39 87 11 11 66 78 982 89 46 Move 20810 | 46 566 3469 557 2401 629 564 545 189 1186 636 292 535 659 520 287 481 709 954 4602 594 389 Hop 6 | . . . . . . . . . 1 1 . . . . . . 2 . 2 . . Pick Up 219 | 3 19 46 9 41 16 5 5 4 5 5 2 . 1 1 3 1 7 6 33 4 3 Fast Attach 174 | 7 . 22 3 7 15 4 7 6 15 8 . 1 3 2 4 . 1 7 47 7 8 Attach 103 | . . 6 . . 19 16 5 3 1 6 1 . . . 2 . 1 . 34 6 3 Detach 79 | . . 8 1 1 12 6 7 2 1 4 . . . . 1 . . . 30 5 1 Swap 108 | . 17 21 . 1 11 . 2 . 8 3 2 . . 4 . . 6 8 21 . 4 Drop 260 | . 13 56 4 46 17 . 3 24 18 8 2 . 3 2 4 2 1 13 39 3 2 Fire 372 | 14 39 184 3 . . 11 1 . 2 1 . . . 8 1 . . . 87 2 19 Melee 298 | . . . . . 55 28 6 . 14 15 2 3 2 9 1 14 12 13 63 14 47 Ram 3 | . . . . . . . . . . . . . . . . . . . 3 . . Kick . | . . . . . . . . . . . . . . . . . . . . . . Crush 4 | . 1 . 2 . 1 . . . . . . . . . . . . . . . . Escape Stasis 81 | . . 1 . . . . . . . . . . . . . . . . 80 . . Rewire 14 | . . . . . . 2 . . 11 . . . . 1 . . . . . . . Trap 5 | . . 5 . . . . . . . . . . . . . . . . . . . Miscellaneous 10 | . . 10 . . . . . . . . . . . . . . . . . . . Route ------- -11/Scrapyard -10/Materials (discovered 5 exits: [*Mat x2] / [*Min x2] / *Sub) -10/Subcaves (discovered 3 exits: [*Mat x2] / *Rec) -7/Recycling -7/Scraptown (discovered 2 exits: *Fac x2) -5/Factory -5/Upper Caves -5/Upper Caves -5/Zhirov -4/Proximity Caves -4/Factory (discovered 3 exits: *Upp x2 / Arm) -4/Upper Caves -4/Upper Caves (discovered 2 exits: *Res / *War) -4/Warlord -3/Proximity Caves -3/Research (discovered 5 exits: Res x3 / *Tes x2) -3/Testing -2/Research (discovered 2 exits: *Qua x2) -2/Quarantine (discovered 3 exits: *Acc / *Sec / *Frg) -2/Protoforge -1/Access -1/Command History --------- Turn | Location | Event 3 | -11/Scrapyard | Discovered new exit (range 16) 122 | -11/Scrapyard | Entered Materials 310 | -10/Materials | Build established: Mutant 330 | -10/Materials | Discovered new exit (range 13) 440 | -10/Materials | Discovered new exit (range 12) 488 | -10/Materials | Discovered new exit (range 7) 600 | -10/Materials | Discovered new exit (range 15) 800 | -10/Materials | Discovered new exit (range 16) 1232 | -10/Materials | Entered Subcaves 1233 | -10/Subcaves | Approached by a straggling Scientist 1246 | -10/Subcaves | A swath of the cavern ceiling suddenly collapsed 1400 | -10/Subcaves | Ambushed by Subdwellers from Twisted Machinery 1545 | -10/Subcaves | Discovered new exit (range 15) 1982 | -10/Subcaves | Build established: Subdweller-Mutant 2626 | -10/Subcaves | Disturbed a concealed Subdweller 2772 | -10/Subcaves | Shifting Twisted Machinery released Spk. Treads 2782 | -10/Subcaves | Shifting Twisted Machinery released Sub. Beam Cannon 2862 | -10/Subcaves | Core integrity fell below 50% 3412 | -10/Subcaves | Learned location of Storage (-7) 3658 | -10/Subcaves | Crushed by falling debris 3937 | -10/Subcaves | Ambushed by Subdweller buried in earth 4225 | -10/Subcaves | Shifting Twisted Machinery released Scrap Shield 4259 | -10/Subcaves | Shifting Twisted Machinery released Battle Rifle 4469 | -10/Subcaves | Visited triangular shrine 4486 | -10/Subcaves | Found Prototype Device 4486 | -10/Subcaves | Identified V3-11A's Pendant 4491 | -10/Subcaves | Befriended Subdweller 4667 | -10/Subcaves | Visited 4L-MR0's lab 4698 | -10/Subcaves | Found Power Bank 4788 | -10/Subcaves | Befriended Subdweller 4949 | -10/Subcaves | Build established: Derelict-Mutant 5524 | -10/Subcaves | Approached by friendly Subdweller 6335 | -10/Subcaves | Learned Materials stockpile data 6489 | -10/Subcaves | Disturbed a concealed Subdweller 6493 | -10/Subcaves | Befriended Subdweller 7177 | -10/Subcaves | Befriended Subdweller 7427 | -10/Subcaves | Befriended Subdweller 7520 | -10/Subcaves | Visited Clippyterm 7534 | -10/Subcaves | Identified exit to Recycling 7534 | -10/Subcaves | Learned Factory garrison access intel 7657 | -10/Subcaves | Befriended Subdweller 7938 | -10/Subcaves | Discovered new exit (range 3) 8005 | -10/Subcaves | A swath of the cavern ceiling suddenly collapsed 9018 | -10/Subcaves | Lost 5 allies 9043 | -10/Subcaves | Approached by friendly Subdweller 11859 | -10/Subcaves | Build established: Mutant 12602 | -10/Subcaves | Entered Recycling 12602 | -7/Recycling | Accompanied by 1 ally 13297 | -7/Recycling | Scanned before Scraplab entrance 14613 | -7/Recycling | Entered Scraplab 14642 | -7/Recycling | Discovered new exit (range 2) 14646 | -7/Recycling | Entered Scraptown 15223 | -7/Scraptown | Scanned Subdweller tech in exchange for log data 15234 | -7/Scraptown | Learned Factory trap positions 15238 | -7/Scraptown | Learned location of Extension (-6) 15241 | -7/Scraptown | Learned Research terminal intel 15245 | -7/Scraptown | Learned Research security intel 15285 | -7/Scraptown | Discovered new exit (range 13) 15748 | -7/Scraptown | Delivered V3-11A's Pendant to T0-NE2 in exchange for information 16099 | -7/Scraptown | Visited UFD Registry 16099 | -7/Scraptown | Registered with UFD as "Datarider" 16314 | -7/Scraptown | Delivered Scrap Shield to a Scientist 16918 | -7/Scraptown | Visited Shadow of the Wyrm 16997 | -7/Scraptown | Visited Comm Corps 17104 | -7/Scraptown | Visited Cyclists 17122 | -7/Scraptown | Entered Cyclist Reading Room 17191 | -7/Scraptown | Visited Bundlers 17382 | -7/Scraptown | Visited CR-KLE's Repair Center 17500 | -7/Scraptown | Visited Science Guys 17584 | -7/Scraptown | Visited A0-MCA Data Center 17599 | -7/Scraptown | Given a B- rating by A0-MCA 17607 | -7/Scraptown | Found A0-MCA's Component Scanner 17662 | -7/Scraptown | Visited Chapter 10 17695 | -7/Scraptown | Visited Infowarlord's Domain 17708 | -7/Scraptown | Found Exp. Terrain Scanner 17750 | -7/Scraptown | Visited Scrap Suit Storage 17862 | -7/Scraptown | Visited Observation Area 17903 | -7/Scraptown | Visited Sword Containment 17929 | -7/Scraptown | Found Prototype Slashing Weapon 17929 | -7/Scraptown | Identified Companion Sword 17994 | -7/Scraptown | Visited Botcube Research 18012 | -7/Scraptown | Found Botcube 19951 | -7/Scraptown | Botcube activated 19973 | -7/Scraptown | Botcube completed mutation into legged form, armed with 2 guns 20504 | -7/Scraptown | Discovered new exit (range 5) 20883 | -7/Scraptown | Met Optimus 20883 | -7/Scraptown | Accepted into 0bPrime 21033 | -7/Scraptown | Entered Factory 21033 | -5/Factory | Accompanied by 1 ally 21033 | -5/Factory | Evolved 10 slots: Power x1, Propulsion x3, Utility x6 21034 | -5/Factory | Loaded intel: 106 trap records 21035 | -5/Factory | Loaded intel: 4 garrison access locations 21165 | -5/Factory | Discovered new exit (range 28) 21275 | -5/Factory | Identified exit to Upper Caves 21520 | -5/Factory | Build established: Assassin 21678 | -5/Factory | Loaded intel: 8 recycling unit locations 22088 | -5/Factory | Found Prototype Launcher 22088 | -5/Factory | Identified Rocket Array 22291 | -5/Factory | Cargo convoy interrupted 22331 | -5/Factory | Entered Upper Caves 22331 | -5/Upper Caves | Accompanied by 1 ally 22333 | -5/Upper Caves | UFD Scientist delivered a prototype 22335 | -5/Upper Caves | Found Prototype Protection 22335 | -5/Upper Caves | Identified Enh. Scrap Shield 22340 | -5/Upper Caves | Attracted the attention of an 0b10 outpost 22342 | -5/Upper Caves | System corruption reached 10% 22372 | -5/Upper Caves | Lost 3 parts (1p2u) 22377 | -5/Upper Caves | Destroyed 11 combat bots 22415 | -5/Upper Caves | Found Botcube 22426 | -5/Upper Caves | Lost 5 parts (1p2n2u) 22457 | -5/Upper Caves | Encountered a Warlord checkpoint 22500 | -5/Upper Caves | Attracted the attention of an 0b10 checkpoint 22806 | -5/Upper Caves | Spotted B-75 Beast 22982 | -5/Upper Caves | Rewired B-75 Beast 23166 | -5/Upper Caves | Build established: Scavenger-Mutant 23167 | -5/Upper Caves | Discovered new exit (range 8) 23266 | -5/Upper Caves | Identified exit to Upper Caves 23277 | -5/Upper Caves | Entered another Upper Caves area 23277 | -5/Upper Caves | Accompanied by 1 ally 23338 | -5/Upper Caves | Lost 3 parts (2p1n) 23361 | -5/Upper Caves | Prototype Device suddenly appears! 23381 | -5/Upper Caves | Found Prototype Device 23381 | -5/Upper Caves | Identified Amulet of Y3-NDR 23404 | -5/Upper Caves | Joined by bewildered Wizard 23405 | -5/Upper Caves | Joined by bewildered Wizard 23405 | -5/Upper Caves | Joined by bewildered Wizard 23415 | -5/Upper Caves | Joined by bewildered Wizard 23990 | -5/Upper Caves | Joined by bewildered Wizard 23993 | -5/Upper Caves | Joined by bewildered Wizard 24002 | -5/Upper Caves | Joined by bewildered Wizard 24003 | -5/Upper Caves | Joined by bewildered Wizard 24057 | -5/Upper Caves | Learned Factory trap positions 24058 | -5/Upper Caves | Found DCF Scrap (15 items) 24353 | -5/Upper Caves | Discovered new exit (range 14) 24371 | -5/Upper Caves | Identified exit to Zhirov 24445 | -5/Upper Caves | Entered Zhirov 24445 | -5/Zhirov | Discovered new exit (range 3) 24447 | -5/Zhirov | Identified exit to Proximity Caves 24454 | -5/Zhirov | Lost 3 allies 24469 | -5/Zhirov | Met Zhirov 24499 | -5/Zhirov | Learned location of Quarantine (-2) 24499 | -5/Zhirov | Learned location of Testing (-3) 24499 | -5/Zhirov | Learned location of Command (-1) 24507 | -5/Zhirov | Zhirov requested help retrieving the SGEMP Prototype 24526 | -5/Zhirov | Found Alien Artifact 24526 | -5/Zhirov | Identified Integrated Reactor 24526 | -5/Zhirov | Installed Integrated Reactor, increased core energy generation (+10) 24542 | -5/Zhirov | Found Alien Artifact 24679 | -5/Zhirov | Entered Proximity Caves 24680 | -4/Proximity Caves | Greeted by an Infiltrator in a former 0b10 base 24708 | -4/Proximity Caves | Joined by bewildered Wizard 24708 | -4/Proximity Caves | Joined by bewildered Wizard 24720 | -4/Proximity Caves | Joined by bewildered Wizard 24720 | -4/Proximity Caves | Joined by bewildered Wizard 24721 | -4/Proximity Caves | Former 0b10 base attacked by MAIN.C 24784 | -4/Proximity Caves | Learned 12 Research zone layouts 24966 | -4/Proximity Caves | Lost 3 allies 25035 | -4/Proximity Caves | Build established: Scout 25062 | -4/Proximity Caves | Joined by bewildered Wizard 25067 | -4/Proximity Caves | Joined by bewildered Wizard 25079 | -4/Proximity Caves | 0b10 base defense nominally successful 25149 | -4/Proximity Caves | Allies destroyed S8-5NB(g) 25180 | -4/Proximity Caves | Lost 23 allies 25190 | -4/Proximity Caves | System corruption reached 30% 25261 | -4/Proximity Caves | Lost 4 allies 25587 | -4/Proximity Caves | Discovered new exit (range 15) 25590 | -4/Proximity Caves | Identified exit to Factory 25591 | -4/Proximity Caves | Entered Factory 25591 | -4/Factory | Evolved 2 slots: Propulsion x1, Utility x1 25592 | -4/Factory | Loaded intel: 107 trap records 25722 | -4/Factory | Joined by bewildered Wizard 25724 | -4/Factory | Joined by bewildered Wizard 25795 | -4/Factory | Joined by bewildered Wizard 25797 | -4/Factory | Joined by bewildered Wizard 25818 | -4/Factory | Loaded intel: 8 recycling unit locations 25818 | -4/Factory | Learned location of Protoforge (-2) 25826 | -4/Factory | Found Exp. Signal Interpreter 25828 | -4/Factory | Spotted B-86 Titan 25841 | -4/Factory | Identified exit to Upper Caves 25841 | -4/Factory | Identified exit to Armory 25898 | -4/Factory | Lost 4 parts (2n2u) 25917 | -4/Factory | Entered Upper Caves 25923 | -4/Upper Caves | Learned location of Armory (-4) 25925 | -4/Upper Caves | Joined by bewildered Wizard 25926 | -4/Upper Caves | Joined by bewildered Wizard 25926 | -4/Upper Caves | Joined by bewildered Wizard 25941 | -4/Upper Caves | Joined by bewildered Wizard 26008 | -4/Upper Caves | Joined by bewildered Wizard 26010 | -4/Upper Caves | Joined by bewildered Wizard 26012 | -4/Upper Caves | Discovered new exit (range 8) 26012 | -4/Upper Caves | Spotted B-86 Titan 26014 | -4/Upper Caves | Identified exit to Upper Caves 26017 | -4/Upper Caves | Joined by bewildered Wizard 26022 | -4/Upper Caves | Found Alien Artifact 26041 | -4/Upper Caves | Joined by bewildered Wizard 26055 | -4/Upper Caves | Entered another Upper Caves area 26055 | -4/Upper Caves | Accompanied by 4 allies 26070 | -4/Upper Caves | Discovered new exit (range 10) 26073 | -4/Upper Caves | Identified exit to Research 26095 | -4/Upper Caves | Learned 4 Research zone layouts 26156 | -4/Upper Caves | Build established: Hacker-Sprinter 26198 | -4/Upper Caves | Attracted the attention of an 0b10 outpost 26198 | -4/Upper Caves | Learned location of 1 exit from Research 26204 | -4/Upper Caves | Learned 8 Research zone layouts 26226 | -4/Upper Caves | Discovered new exit (range 5) 26228 | -4/Upper Caves | Identified exit to Warlord 26275 | -4/Upper Caves | Joined by bewildered Wizard 26276 | -4/Upper Caves | Joined by bewildered Wizard 26277 | -4/Upper Caves | Joined by bewildered Wizard 26292 | -4/Upper Caves | Joined by bewildered Wizard 26356 | -4/Upper Caves | Entered Warlord 26356 | -4/Warlord | Accompanied by 4 allies 26364 | -4/Warlord | Discovered new exit (range 12) 26366 | -4/Warlord | Identified exit to Proximity Caves 26375 | -4/Warlord | System corruption cleaned by Quarantine Array 26469 | -4/Warlord | Found RU-N14's Throwing Claymores v3 26477 | -4/Warlord | Found RU-N14's Throwing Claymores v3 26513 | -4/Warlord | Visited the Vortex Lab 26522 | -4/Warlord | Rebuked by Warlord 26529 | -4/Warlord | Warlord's base attacked by MAIN.C 26571 | -4/Warlord | Opened side exit 26592 | -4/Warlord | Entered Proximity Caves 26592 | -3/Proximity Caves | Accompanied by 4 allies 26750 | -3/Proximity Caves | Unaware initiated a cargo recovery operation 26776 | -3/Proximity Caves | Found Ragnarok Missile Launcher 26825 | -3/Proximity Caves | Lost 3 allies 26827 | -3/Proximity Caves | Discovered exit to Research (range 15) 26864 | -3/Proximity Caves | Joined by bewildered Wizard 26865 | -3/Proximity Caves | Joined by bewildered Wizard 26877 | -3/Proximity Caves | Entered Research 26877 | -3/Research | Accompanied by 3 allies 26877 | -3/Research | Evolved 2 slots: Propulsion x1, Utility x1 26878 | -3/Research | Identified exit to Research 26879 | -3/Research | Identified exit to Testing 26881 | -3/Research | Loaded intel: 24 terminal locations 26978 | -3/Research | Entered Testing 27022 | -3/Testing | Spotted Alpha 7 27147 | -3/Testing | Entered Research 27147 | -2/Research | Evolved 2 slots: Utility x1, Weapon x1 27174 | -2/Research | Build established: Hacker-Ninja 27185 | -2/Research | Joined by bewildered Wizard 27185 | -2/Research | Joined by bewildered Wizard 27185 | -2/Research | Joined by bewildered Wizard 27247 | -2/Research | Identified exit to Quarantine 27257 | -2/Research | Joined by bewildered Wizard 27257 | -2/Research | Joined by bewildered Wizard 27319 | -2/Research | Repaired Nuclear Pulse Array+ 27364 | -2/Research | Found Gamma Bomb Array 27365 | -2/Research | Spotted B-90 Cyclops 27444 | -2/Research | Entered Quarantine 27472 | -2/Quarantine | Cryocooling Duct disabled 27487 | -2/Quarantine | Ambient heat levels rising (+20) 27487 | -2/Quarantine | Non-combat units ordered to evacuate 27492 | -2/Quarantine | Found Imp. Powered Armor 27569 | -2/Quarantine | Repaired Cld. Nuclear Pulse Thruster 27583 | -2/Quarantine | Watched by a mysterious "MATRIX" hacker 27591 | -2/Quarantine | Found Alien Artifact 27591 | -2/Quarantine | Identified Phase Redirector 27628 | -2/Quarantine | Found Exp. System Shield 27652 | -2/Quarantine | Found Alien Energy Cannon 27672 | -2/Quarantine | Found Alien Artifact 27689 | -2/Quarantine | Found Alien Artifact 27689 | -2/Quarantine | Identified Dimensional Node Initializer (x2) 27689 | -2/Quarantine | Initialized slip node 27691 | -2/Quarantine | Found Alien Artifact 27691 | -2/Quarantine | Identified Hpw. Transdimensional Reconstructor 27691 | -2/Quarantine | Warped through subspace to slip node 27696 | -2/Quarantine | Found Alien Artifact 27696 | -2/Quarantine | Identified Transdimensional Reconstructor (x2) 27696 | -2/Quarantine | Warped through subspace to slip node 27755 | -2/Quarantine | Discovered new exit (range 13) 27780 | -2/Quarantine | Spotted Fortress 27795 | -2/Quarantine | Discovered new exit (range 6) 27795 | -2/Quarantine | Discovered new exit (range 7) 27796 | -2/Quarantine | Identified exit to Section 7 27796 | -2/Quarantine | Identified exit to Protoforge 27796 | -2/Quarantine | Entered Protoforge 27802 | -2/Protoforge | Spotted B-90 Cyclops 27842 | -2/Protoforge | Identified exit to Access 27880 | -2/Protoforge | Initialized slip node 27883 | -2/Protoforge | Spotted Hotshot 27903 | -2/Protoforge | Identified Core Cannon 27907 | -2/Protoforge | Additional patrols dispatched to research labs 27907 | -2/Protoforge | Superfortress began startup sequence 27907 | -2/Protoforge | Spotted Immortal 27938 | -2/Protoforge | Spotted EXE-6 27938 | -2/Protoforge | Spotted EXE-6 27947 | -2/Protoforge | UFD initiated attack on Protoforge (Readiness: Low) 27947 | -2/Protoforge | Loaded intel: 3 recycling unit locations 27983 | -2/Protoforge | Optimus greeted in Protoforge 28078 | -2/Protoforge | Met 7R-MNS 28100 | -2/Protoforge | Spotted Immortal 28101 | -2/Protoforge | Spotted V467-g 28150 | -2/Protoforge | Lost 4 parts (1n3u) 28182 | -2/Protoforge | Spotted AP7-3 28187 | -2/Protoforge | Identified Subatomic Replicator 28187 | -2/Protoforge | Forged Prototype Slashing Weapon 28206 | -2/Protoforge | Found Exp. Cloaking Device 28211 | -2/Protoforge | Found Cep. Antimissile System 28219 | -2/Protoforge | Spotted Executioner 28219 | -2/Protoforge | Spotted Striker 28247 | -2/Protoforge | Spotted Executioner 28316 | -2/Protoforge | Lost 5 allies 28324 | -2/Protoforge | Build established: Hacker-Sprinter 28332 | -2/Protoforge | Forge Plexus network access discovered 28337 | -2/Protoforge | Spotted Executioner 28337 | -2/Protoforge | Spotted Executioner 28345 | -2/Protoforge | Destroyed 10 combat bots 28353 | -2/Protoforge | Spotted Striker 28355 | -2/Protoforge | Spotted Striker 28362 | -2/Protoforge | Spotted Striker 28364 | -2/Protoforge | Spotted Striker 28387 | -2/Protoforge | Spotted Executioner 28388 | -2/Protoforge | Spotted Striker 28415 | -2/Protoforge | Found Exp. Core Analyzer 28446 | -2/Protoforge | Spotted Executioner 28446 | -2/Protoforge | Spotted Striker 28474 | -2/Protoforge | Spotted Executioner 28488 | -2/Protoforge | Spotted Decapitator 28488 | -2/Protoforge | Spotted Decapitator 28488 | -2/Protoforge | Spotted Decapitator 28488 | -2/Protoforge | Spotted Decapitator 28495 | -2/Protoforge | Destroyed Decapitator 28495 | -2/Protoforge | Destroyed Decapitator 28495 | -2/Protoforge | Destroyed Decapitator 28497 | -2/Protoforge | Destroyed Decapitator 28509 | -2/Protoforge | Found Cep. RG22 Armor 28513 | -2/Protoforge | Found Cep. Core Shell 28520 | -2/Protoforge | Found Cep. Core Shell 28536 | -2/Protoforge | Found Cep. Matter Streamer 28567 | -2/Protoforge | Spotted Immortal 28567 | -2/Protoforge | Spotted Immortal 28717 | -2/Protoforge | Destroyed Executioner 28726 | -2/Protoforge | Destroyed Striker 28735 | -2/Protoforge | Spotted V835-m 28735 | -2/Protoforge | Spotted V772-a 28740 | -2/Protoforge | Destroyed Immortal 28742 | -2/Protoforge | Destroyed Immortal 28749 | -2/Protoforge | Found Exp. Active Sensor Suite 28756 | -2/Protoforge | Found Cep. Network Penetrator 28825 | -2/Protoforge | UFD reported confirmed Drillbomb installation 28889 | -2/Protoforge | Spotted V082-i 28889 | -2/Protoforge | Spotted V591-k 28893 | -2/Protoforge | Found Femtoactuators 28896 | -2/Protoforge | Found Cep. Weapon Articulator 28898 | -2/Protoforge | Found Cep. Melee Reflex Suite 28901 | -2/Protoforge | Spotted V933-o 28982 | -2/Protoforge | Spotted Executioner 29016 | -2/Protoforge | Build established: Hacker-Ninja 29108 | -2/Protoforge | Found Crosscalibrator 29110 | -2/Protoforge | Spotted Immortal 29110 | -2/Protoforge | Spotted Immortal 29143 | -2/Protoforge | UFD reported confirmed Drillbomb installation 29225 | -2/Protoforge | Found Faulty Cep. RG22 Armor 29266 | -2/Protoforge | Found Cep. Phase Shift Module 29399 | -2/Protoforge | Build established: Hacker-Scout 29612 | -2/Protoforge | Spotted AP7-3 29651 | -2/Protoforge | Crushed by falling debris 29652 | -2/Protoforge | System corruption reached 10% 29654 | -2/Protoforge | Found Faulty Cep. Disintegration Ray 29658 | -2/Protoforge | Found Cep. Disintegration Ray 29676 | -2/Protoforge | Found Cep. Lightning Penetrator 29681 | -2/Protoforge | Found Exp. Jetlance 29682 | -2/Protoforge | Lost 3 parts (2n1u) 29695 | -2/Protoforge | Found Cep. Deflector Sword 29698 | -2/Protoforge | Found Faulty Cep. Plasma Driver 29700 | -2/Protoforge | Found Faulty Cep. Plasma Driver 29783 | -2/Protoforge | Found Cep. Deflector Sword 29842 | -2/Protoforge | UFD reported confirmed Drillbomb installation 29856 | -2/Protoforge | Found Cep. Combat Aerolev Unit 29858 | -2/Protoforge | Found Cep. Gyrokinetic System 29915 | -2/Protoforge | Destroyed V835-m 29927 | -2/Protoforge | Destroyed V772-a 29932 | -2/Protoforge | Found Cep. RG22 Armor 30035 | -2/Protoforge | Spotted AP7-3 30043 | -2/Protoforge | Destroyed AP7-3 30047 | -2/Protoforge | Destroyed AP7-3 30065 | -2/Protoforge | Found Cep. Impact Drone Bay 30067 | -2/Protoforge | Found Cep. Thermoelectric Network 30069 | -2/Protoforge | Found Cep. Cloak Mesh 30170 | -2/Protoforge | Spotted V940-b 30170 | -2/Protoforge | Spotted V652-t 30170 | -2/Protoforge | Spotted V141-k 30184 | -2/Protoforge | Found Cep. Antigrav Storage Unit 30187 | -2/Protoforge | Found Prototype Storage 30187 | -2/Protoforge | Identified Cep. NT7 Matterbank 30192 | -2/Protoforge | Found Cep. Chromion Battery 30220 | -2/Protoforge | Spotted Decapitator 30220 | -2/Protoforge | Spotted Decapitator 30220 | -2/Protoforge | Spotted Decapitator 30233 | -2/Protoforge | Destroyed Immortal 30242 | -2/Protoforge | Destroyed Immortal 30263 | -2/Protoforge | Found Cep. EMP Blanket Launcher 30271 | -2/Protoforge | Found Cep. Arcsight Missile Launcher 30274 | -2/Protoforge | Found Cep. Rapid Grenade Launcher 30276 | -2/Protoforge | Found Cep. Arcsight Missile Launcher 30292 | -2/Protoforge | Destroyed Decapitator 30293 | -2/Protoforge | Destroyed Decapitator 30336 | -2/Protoforge | Build established: Hacker-Ninja 30385 | -2/Protoforge | Spotted Decapitator 30386 | -2/Protoforge | Spotted Decapitator 30386 | -2/Protoforge | Spotted Decapitator 30386 | -2/Protoforge | Spotted V646-i 30388 | -2/Protoforge | Spotted V530-s 30390 | -2/Protoforge | Destroyed Decapitator 30390 | -2/Protoforge | Destroyed Decapitator 30394 | -2/Protoforge | Destroyed Decapitator 30407 | -2/Protoforge | Destroyed V530-s 30411 | -2/Protoforge | Destroyed V646-i 30416 | -2/Protoforge | Found Prototype Ballistic Gun 30416 | -2/Protoforge | Identified Cep. XC Strikerail 30420 | -2/Protoforge | Found Exp. Jetlance 30428 | -2/Protoforge | Found Cep. Gyrokinetic System 30438 | -2/Protoforge | Found Prototype Ballistic Cannon 30438 | -2/Protoforge | Identified Cep. Helical Railcannon 30442 | -2/Protoforge | Found Cep. Helical Railcannon 30454 | -2/Protoforge | Found Cep. Variable Chargecaster 30469 | -2/Protoforge | Lost 5 parts (1p2u2w) 30492 | -2/Protoforge | Found Femtoactuators 30521 | -2/Protoforge | Core integrity fell below 50% 30526 | -2/Protoforge | Warped through subspace to slip node 30526 | -2/Protoforge | Spotted Executioner 30530 | -2/Protoforge | Spotted Executioner 30530 | -2/Protoforge | Spotted Striker 30531 | -2/Protoforge | Spotted Hotshot 30533 | -2/Protoforge | Spotted Hotshot 30533 | -2/Protoforge | Spotted Hotshot 30534 | -2/Protoforge | Spotted Hotshot 30535 | -2/Protoforge | Core integrity fell below 20% 30539 | -2/Protoforge | Entered Access 30539 | -1/Access | Evolved 2 slots: Utility x2 30565 | -1/Access | Lost 3 parts (2n1u) 30718 | -1/Access | Spotted Striker 30768 | -1/Access | Spotted Striker 30789 | -1/Access | First assault squad dispatched 30819 | -1/Access | Identified exit to Command 30846 | -1/Access | Spotted B-99 Colossus 30880 | -1/Access | Spotted Striker 30894 | -1/Access | Allies destroyed Striker 30917 | -1/Access | Lost 5 parts (3n2u) 30924 | -1/Access | Spotted Executioner 30924 | -1/Access | Spotted Executioner 31004 | -1/Access | Entered Command 31229 | -1/Command | Disengaged cave seal 31229 | -1/Command | Wild derelicts emerged from the dark tunnel 31233 | -1/Command | Spotted M Guard 31233 | -1/Command | Spotted M Guard 31234 | -1/Command | Spotted Combat Programmer 31234 | -1/Command | Spotted Combat Programmer 31244 | -1/Command | Destroyed Combat Programmer 31250 | -1/Command | Destroyed Combat Programmer 31254 | -1/Command | First assault squad dispatched 31260 | -1/Command | Destroyed M Guard 31262 | -1/Command | Destroyed M Guard 31262 | -1/Command | All MAIN.C guards destroyed 31291 | -1/Command | Lost 4 allies 31300 | -1/Command | Build established: Wizard-Ninja 31311 | -1/Command | Met MAIN.C 31318 | -1/Command | 0b10 Conduit disabled 31323 | -1/Command | Core integrity fell below 50% 31350 | -1/Command | Core integrity fell below 20% 31365 | -1/Command | Destroyed by MAIN.C with Heavy Quantum Rifle Last Messages --------------- So if you wouldn't mind, it's time to surrender. 31311_ Imp. Point Defense System destroyed. 31311_ Cep. Cloak Mesh destroyed. The surroundings shift and blur. 31315_ Antigrav System destroyed. 31315_ Door malfunctions. 31318_ Cep. Gyrokinetic System destroyed. 31318_ 0b10 Conduit disabled. Quantum Companion: "This one's on me." 31325_ Hyb. Graviton Reactor destroyed. 31325_ Adv. Reaction Control System destroyed. 31329_ Particle Reactor destroyed. 31336_ System corrupted: Heat flow error (+291). 31336_ Antigrav Array destroyed. 31336_ System Shield destroyed. 31336_ Destroyed Prototype Energy Cannon. 31355_ Cep. Deflector Sword destroyed. 31359_ Cmb. Gravmag System destroyed. 31362_ Femtoactuators destroyed. 31365_ Exp. Active Sensor Suite destroyed. Map ----- +----------------------------------------------------+ | ?????????????????????????????????????????????????? | | ?????????????????????????????????????????????????? | | ?????????????????????????????????????????????????? | | ?????????????????????????????????????????????????? | | ?????????????????????????????????????????????????? | | ?????????????????????????????????????????????????? | | ?????????????????????????????????????????????????? | | ?????????????????????????????????????????????????? | | ?????????????????????????????????????????????????? | | ?????????????????????????????????????????????????? | | ?????????????????????????????????????????????????? | | ?????????????????????????????????????????????????? | | ?????????????????????????????????????????????????? | | ?????????????????????????????????????????????????? | | ????????????????###################??????????????? | | ???????????????""""" """" #??????????????? | | ???????????????? "" #??????????????? | | ????????????????"" "" ################ | | ????????????????"""""""" / | | ?????????????????" """ / | | ?????????????"" """""" / | | ????????????#"" """""" ################ | | ????????????# " """""" #??????????????? | | ????????????# " "" #??????????????? | | ????????????# " "MMM ""#??????????????? | | ????????????#"""""""""MMM@ """""""#??????????????? | | ????????????#"" MMM """"""""#??????????????? | | ????????????# """ """""""#??????????????? | | ????????????# " " " #??????????????? | | ????????????# " " " " #??????????????? | | ????????????" " " " """" " #??????????????? | | ????????????" """ " " """" #??????????????? | | ????????????" " " " " #??????????????? | | ????????????# """""""""" " #??????????????? | | ????????????# " """ " """"""""#??????????????? | | ????????????# ???" " ?" " ????????????????? | | ????????????#####???#####?#####??????????????????? | | ?????????????????????????????????????????????????? | | ?????????????????????????????????????????????????? | | ?????????????????????????????????????????????????? | | ?????????????????????????????????????????????????? | | ?????????????????????????????????????????????????? | | ?????????????????????????????????????????????????? | | ?????????????????????????????????????????????????? | | ?????????????????????????????????????????????????? | | ?????????????????????????????????????????????????? | | ?????????????????????????????????????????????????? | | ?????????????????????????????????????????????????? | | ?????????????????????????????????????????????????? | | ?????????????????????????????????????????????????? | +----------------------------------------------------+ Best States ------------- Heat Dissipation 52 Energy Generation 51 Energy Capacity 2700 Matter Stores 300 Matter Capacity 300 Sight Range 23 Robot Scan Range 20 Terrain Scan Range 30 Terrain Scan Density 210 ECM Strength 1 Jamming Range 16 Cloak Strength 6 Armor Coverage 900 Resistance: TH 15 Core Shielding 90 Propulsion Shielding 15 Point Defense Rating 160 Projectile Deflection 15 Melee Speed Boost 50 Evasion (%) 80 Targeting Accuracy 30 Melee Accuracy 8 Core Analysis 8 Recoil Reduction 5 Particle Charging 30 Offensive Hacking 50 Defensive Hacking 16 Item Schematics ----------------- Assault Drone Bay | -5/Zhirov | Free Exp. Heat Sink | -5/Zhirov | Free Exp. Optical Array | -5/Zhirov | Free Imp. Arc Thrower | -5/Zhirov | Free Imp. Q-thruster | -2/Protoforge | Archive Enh. Biometal Leg | -2/Protoforge | Archive Hvy. Wave Gun | -2/Protoforge | Archive Ragnarok Missile Launcher | -2/Protoforge | Archive Robot Schematics ------------------ None Fabricated ------------ Nothing Repaired ---------- Nuclear Pulse Array | 18% | -2/Research Cld. Nuclear Pulse Thruster | 17% | -2/Quarantine Studied --------- Hvy. Rocket Launcher | -5/Factory | Hacked Mic. Antimatter Reactor | -3/Testing | Hacked Nuclear Pulse Array | -2/Research | Hacked Gamma Bomb Array | -2/Quarantine | Hacked Alien Tech Used ----------------- Integrated Reactor Phase Redirector Dimensional Node Initializer High-powered Transdimensional Reconstructor Transdimensional Reconstructor Core Cannon Subatomic Replicator Achievements -------------- None Challenges ------------ None Game ------ Seed CloakGreatLeg Manual? 0 Play Time 03:57:58 Cumulative 543.6 hours Start 2026.08.28 @ 19:47:09 End 2026.08.28 @ 23:54:18 Sessions 1 Manual Loads 0 Difficulty Rogue Special Mode None Game No. 305 Rogue 305 Adventurer 0 Explorer 0 Win Type - Total 27 Types 14/1/4/2/1/0/1/2/1/1 Lore% 94 Gallery% 84 Achievement% 77 Wizard Run 0 Options --------- Layout 1 ASCII 0 Keyboard 0 Movement Mouse Keybinds 0 Fullscreen 2 Font 32/SmallcapsGlow Map View 50x35 Zoom Use 0% Tactical HUD 1 Map Filters NONE Filters NONE Steam 1 RUN: a4ac164e-d962-486d-b73e-e065f1c39e90